Cogmind - Beta 16 @@@ ROGUE MODE // 2025.10.24 @ 16:13:42 Player: Skergy Result: Destroyed by JB-UYI(R) with Subdweller Machine Gun Performance ------------- Evolutions (0) 0 Regions Visited (3) 600 Robots Destroyed (24) 120 Value Destroyed (586) 586 Prototype IDs (0) 0 Alien Tech Used (0) 0 Bonus (0) 0 TOTAL SCORE: 1306 Bonus ------- None Cogmind --------- Core Integrity 0/250 Matter 208/300 Energy 123/125 System Corruption 0% Temperature Hot (259) Movement Walking (260) Ox2 Location -10/Subcaves Parts ------- > --- POWER (1) -------- Light Ion Engine > --- PROPULSION (2) --- Spiked Treads Aluminum Leg > --- UTILITY (2) ------ Scrap Shield > --- WEAPON (2) ------- Battle Rifle Makeshift Spear > --- INVENTORY (5) ---- Aluminum Leg Small Storage Unit Medium Laser Peak State ------------ > --- POWER ------------ Ion Engine > --- PROPULSION ------- Spiked Treads Aluminum Leg > --- UTILITY ---------- Small Storage Unit Signal Interpreter > --- WEAPON ----------- Barrage Gun Makeshift Spear > --- INVENTORY -------- Light Ion Engine Aluminum Leg Scrap Shield Medium Laser Light Assault Rifle Battle Rifle Subdweller Shrapnel Launcher [Rating: 14] Favorites ----------- Power Ion Engine Engine Ion Engine Propulsion Aluminum Leg Treads Spiked Treads Leg Aluminum Leg Utility Small Storage Unit Storage Small Storage Unit Processor Signal Interpreter Protection Scrap Shield Weapon Battle Rifle Energy Gun Medium Laser Ballistic Gun Battle Rifle Launcher Grenade Launcher Piercing Weapon Makeshift Spear Build | -11 -10 -10 -10 ------- Run | Yrd Mat Min Sub Slots Evolved . | . . . . Power . | . . . . Propulsion . | . . . . Utility . | . . . . Weapon . | . . . . Parts Attached 20 | 6 3 . 11 Power 2 | 1 . . 1 Engine 2 | 1 . . 1 Core . | . . . . Reactor . | . . . . Propulsion 6 | 2 . . 4 Treads 3 | 2 . . 1 Leg 3 | . . . 3 Wheel . | . . . . Hover . | . . . . Flight . | . . . . Utility 3 | 1 1 . 1 Device . | . . . . Storage 1 | 1 . . . Processor 1 | . 1 . . Hackware . | . . . . Protection 1 | . . . 1 Artifact . | . . . . Weapon 9 | 2 2 . 5 Energy Gun 3 | 2 . . 1 Energy Cannon . | . . . . Ballistic Gun 3 | . 1 . 2 Ballistic Cannon . | . . . . Launcher 2 | . 1 . 1 Special Weapon . | . . . . Impact Weapon . | . . . . Slashing Weapon . | . . . . Piercing Weapon 1 | . . . 1 Special Melee Weapon . | . . . . Unidentified Prototypes . | . . . . Parts Lost 9 | . 2 . 7 Power 1 | . . . 1 Propulsion 3 | . . . 3 Utility . | . . . . Weapon 5 | . 2 . 3 Highest Loss Streak 2 | . 2 . 2 To Critical Strikes . | . . . . Average Backups 5 | 3 5 5 5 Power . | . 1 1 . Propulsion 1 | 1 3 2 1 Utility . | . . . . Weapon 2 | . 1 1 3 Tool/Special . | . . . . Unused Backups 3 | . . 2 1 Power . | . . . . Propulsion 1 | . . 1 . Utility 1 | . . 1 . Weapon 1 | . . . 1 Tool/Special . | . . . . Average Slot Usage (%) 91 | . 87 100 90 Engine 8 | . 14 14 7 Treads 17 | . 28 28 14 Leg 10 | . . . 13 Storage 12 | . 14 14 12 Processor 11 | . 2 14 12 Protection 1 | . . . 1 Energy Gun 2 | . 18 . . Ballistic Gun 14 | . 4 14 16 Launcher 3 | . 4 14 1 Piercing Weapon 6 | . . . 8 Peak Build Rating 14 | 6 7 8 14 Average Rating 10 | 4 6 7 11 On Entrance 5 | . 6 7 8 Avg Prop Armor Cover (%) 7 | . . . 7 Naked Turns . | . . . . Heaviest Build 26 | 13 14 14 26 Greatest Support 40 | 40 40 40 40 Greatest Overweight (x) 2 | 2 . . 2 Average Overweight (x) . | . . . . Largest Inventory Capacity 8 | 8 8 8 8 Average Capacity 7 | 7 8 8 7 Most Carried 8 | 5 7 8 8 Average Carried 6 | 3 5 7 6 Final Capacity 8 | 8 8 8 5 Final Carried 8 | 5 5 8 3 Class Distribution -------------------- 94% | Mutant 5% | Derelict-Mutant Dominant Class ---------------- Mutant | -10/Materials Mutant | -10/Mines Mutant | -10/Subcaves Resources | -11 -10 -10 -10 ----------- Run | Yrd Mat Min Sub Matter Collected 614 | 197 119 12 286 Remotely . | . . . . Salvage Created 586 | . 238 20 328 Parts 41 | . 17 6 18 Haulers Intercepted . | . . . . Recyclers Shooed 1 | . 1 . . Parts Field Recycled . | . . . . Retrieved Matter . | . . . . Parts Self-Destructed 1 | . . . 1 Prevented . | . . . . Parts Restored . | . . . . Kills | -11 -10 -10 -10 ------- Run | Yrd Mat Min Sub Combat Hostiles Destroyed 23 | . 10 3 10 Guns 15 | . 8 . 7 AOE 8 | . 2 3 3 Classes Destroyed 4 | . 3 . 1 Recycler 1 | . 1 . . Swarmer 11 | . 8 3 . Grunt 6 | . 2 . 4 Subdweller 6 | . . . 6 Best Kill Streak 7 | . 7 3 2 Combat Bots Only 6 | . 6 3 2 Max Kills in Single Turn 3 | . 2 3 1 Gunslinging . | . . . . Exploded 3 | . 2 3 1 Melee . | . . . . Uniques/NPCs Destroyed . | . . . . Combat | -11 -10 -10 -10 -------- Run | Yrd Mat Min Sub Hostile Shots Fired 147 | . 76 2 69 Missed 37 | . 18 2 17 Hits 110 | . 58 . 52 Projectile 110 | . 58 . 52 Critical Strikes 1 | . . . 1 Damage Taken 1603 | . 484 39 1080 Core 264 | . 76 . 188 Absorbed by Shields . | . . . . Core Remaining (%) 100 | 100 . . . Volleys Fired 68 | . 26 1 41 Largest 2 | . 2 2 2 Hottest 90 | . 90 50 75 Shots Fired 127 | . 48 2 77 Gun 118 | . 45 1 72 Cannon . | . . . . Launcher 9 | . 3 1 5 Special . | . . . . Kinetic 68 | . 2 1 65 Thermal 51 | . 43 . 8 Explosive 8 | . 3 1 4 Electromagnetic . | . . . . Robot Hit Streak 14 | . 5 1 14 Robot Miss Streak 5 | . 5 1 4 Penetration Max . | . . . . Secondary Targets 1 | . 1 . . Max Gunslinging Chain 1 | . 1 . . Shots Hit Robots 82 | . 22 1 59 Core Hits 38 | . 15 4 19 Critical Kills . | . . . . Critical Parts Destroyed 1 | . . . 1 Critical Strikes 2 | . . . 2 Destroy 2 | . . . 2 Melee Attacks 58 | . . . 58 Impact . | . . . . Slashing . | . . . . Piercing 58 | . . . 58 Sneak Attacks 1 | . . . 1 Combat Hostiles . | . . . . Follow-up Attacks . | . . . . Damage Inflicted 1630 | . 493 72 1065 Guns 1063 | . 269 7 787 Cannons . | . . . . Explosions 567 | . 224 65 278 Melee . | . . . . Ramming . | . . . . Kinetic 818 | . 8 7 803 Thermal 360 | . 261 . 99 Explosive 452 | . 224 65 163 Electromagnetic . | . . . . Impact . | . . . . Slashing . | . . . . Piercing . | . . . . Highest Corruption . | . . . . Average Corruption . | . . . . Corruption Purged . | . . . . Corruption Blocked . | . . . . Overload Shots . | . . . . Overflow Damage 25 | . 7 . 18 Projectiles . | . . . . Explosions 25 | . 7 . 18 Melee . | . . . . Knockbacks . | . . . . Impact . | . . . . Kinetic . | . . . . Secondary . | . . . . Self-Inflicted Damage 65 | . 14 39 12 Shots 3 | . 1 1 1 Rammed . | . . . . Targets Rammed . | . . . . Kicked . | . . . . Crushed . | . . . . Highest Temperature 212 | . 212 10 6 Average Temperature 96 | . 103 7 3 Received Heat Transfer 655 | . 30 . 625 Siege Activations . | . . . . Martial Activations . | . . . . Shielding Activations . | . . . . Robots Disrupted . | . . . . Combat Hostiles . | . . . . Robots Corrupted . | . . . . Combat Hostiles . | . . . . Parts Fried . | . . . . Impact Corruptions . | . . . . Robots Melted . | . . . . Combat Hostiles . | . . . . Parts Melted 2 | . 1 . 1 Heat Transferred 1002 | . 706 . 296 Parts Sabotaged . | . . . . Parts Stolen . | . . . . Parts Stripped . | . . . . Power Chain Reactions . | . . . . Alert | -11 -10 -10 -10 ------- Run | Yrd Mat Min Sub Maximum Alert Level . | . . . . Low Security (%) 100 | 100 100 100 . Level 1 . | . . . . Level 2 . | . . . . Level 3 . | . . . . Level 4 . | . . . . Level 5 . | . . . . High Security . | . . . . Max Security . | . . . . Peak Influence 175 | . 175 76 . Initial 48 | . . 48 . Average 39 | . 79 13 . Influence Increases 461 | . 285 76 100 Destroy 0b10 Robot/C 340 | . 200 60 80 Destroy 0b10 Robot/NC 5 | . 5 . . Destroy Leader 50 | . 20 10 20 Successful Hack 10 | . 10 . . Destroy Structure 26 | . 20 6 . Lose Combat Pursuer 30 | . 30 . . Influence Decreases 461 | . 160 135 166 Entered New Map 112 | . . 77 35 Time Decay 308 | . 140 58 110 Lost Part 41 | . 20 . 21 Squads Dispatched . | . . . . Investigation . | . . . . Extermination . | . . . . Reinforcement . | . . . . Assault . | . . . . Garrison . | . . . . Intercept . | . . . . Searches Triggered . | . . . . Construction Impeded . | . . . . Haulers Reinforced . | . . . . Active Scanning Responses . | . . . . Cargo Convoy Interrupts . | . . . . Stealth | -11 -10 -10 -10 --------- Run | Yrd Mat Min Sub Distress Signals 2 | . 2 . . Communications Jammed . | . . . . Distress Signals . | . . . . Times Spotted 29 | . 15 3 11 Peak Tracking Total 8 | . 8 3 2 Tactical Retreats 2 | . 2 . . Traps | -11 -10 -10 -10 ------- Run | Yrd Mat Min Sub Traps Triggered . | . . . . Indirectly . | . . . . Trap Hack Attempts . | . . . . Triggered . | . . . . Disarmed . | . . . . Reprogrammed . | . . . . Reused . | . . . . Traps Extracted . | . . . . Installed 3 | . . . 3 Triggered . | . . . . Most Traps Carried 3 | . . 3 3 Machines | -11 -10 -10 -10 ---------- Run | Yrd Mat Min Sub Machines Disabled . | . . . . Max in Single Turn . | . . . . Machines Repaired . | . . . . Machines Dismantled . | . . . . Machines Sabotaged . | . . . . Overloaded Fab Kills . | . . . . Hacking | -11 -10 -10 -10 --------- Run | Yrd Mat Min Sub Machines Accessed 2 | . 2 . . Terminals 2 | . 2 . . Fabricators . | . . . . Repair Stations . | . . . . Recycling Units . | . . . . Scanalyzers . | . . . . Garrison Access . | . . . . Total Hacks 6 | . 6 . . Successful 3 | . 3 . . Failed 3 | . 3 . . Catastrophic 1 | . 1 . . Database Lockouts . | . . . . Manual 6 | . 6 . . Terminals 6 | . 6 . . Fabricators . | . . . . Repair Stations . | . . . . Recycling Units . | . . . . Scanalyzers . | . . . . Garrison Access . | . . . . Terminal Hacks . | . . . . Fabricator Hacks . | . . . . Repair Station Hacks . | . . . . Recycling Unit Hacks . | . . . . Scanalyzer . | . . . . Garrison Access Hacks . | . . . . Unauthorized Hacks 3 | . 3 . . Terminals 3 | . 3 . . Botnet 2 | . 2 . . Operators 1 | . 1 . . Fabricators . | . . . . Repair Stations . | . . . . Recycling Units . | . . . . Scanalyzers . | . . . . Garrison Access . | . . . . Data Cores Recovered . | . . . . Used . | . . . . Hacking Detections 2 | . 2 . . Full Trace Events . | . . . . Feedback Events . | . . . . Feedback Blocked . | . . . . Robot Schematics Acquired . | . . . . Robots Built . | . . . . Authchips . | . . . . Time . | . . . . Total Robot Build Rating . | . . . . Part Schematics Acquired . | . . . . Parts Built . | . . . . Authchips . | . . . . Time . | . . . . Total Part Build Rating . | . . . . Part Studies Acquired . | . . . . Parts Repaired . | . . . . Time . | . . . . Parts Recycled . | . . . . Recycled Matter . | . . . . Retrieved Matter . | . . . . Retrieved Components . | . . . . Parts Scanalyzed . | . . . . Part Schematics Acquired . | . . . . Parts Damaged . | . . . . Bothacking | -11 -10 -10 -10 ------------ Run | Yrd Mat Min Sub Used RIF Installer . | . . . . Robots Hacked . | . . . . Non-combat . | . . . . Combat . | . . . . Robot Hacks Applied . | . . . . Relay Couplers Released . | . . . . Fabnet Peak Effective % . | . . . . Robots Rewired . | . . . . Allies Hacked . | . . . . Hacks Repelled . | . . . . Allies | -11 -10 -10 -10 -------- Run | Yrd Mat Min Sub Total Allies . | . . . . Largest Group . | . . . . Highest-Rated Group . | . . . . Highest-Rated Ally . | . . . . Total Orders . | . . . . Ally Attacks . | . . . . Total Damage . | . . . . Kills . | . . . . Allies Corrupted . | . . . . Allies Melted . | . . . . Intel | -11 -10 -10 -10 ------- Run | Yrd Mat Min Sub Active Infowar (turns) . | . . . . Robot Analysis Total . | . . . . Derelict Logs Recovered 3 | . . 1 2 Drone Launches . | . . . . Drone Recoveries . | . . . . Exploration | -11 -10 -10 -10 ------------- Run | Yrd Mat Min Sub Turns Passed 2888 | 63 303 355 2167 Spaces Moved 1514 | 37 134 214 1129 Core 11 | 11 . . . Treads 1438 | 26 134 214 1064 Legs 65 | . . . 65 Wheels . | . . . . Hover . | . . . . Flight . | . . . . Fastest Speed 50 | 50 160 160 120 Average Speed 164 | 135 160 160 166 Slowest Speed 260 | 160 160 160 260 Overloaded Moves . | . . . . Propulsion Burnouts . | . . . . Robots Hopped . | . . . . Potential Cave-ins 13 | . . . 13 Cave-ins Triggered . | . . . . Exploration Rate (%) 36 | 3 31 49 61 Regions Visited 3 Branch Regions 2 Pre-discovered Areas 2 | . . . 2 Known Exits Taken 2 | . 1 1 . Unknown Exits Taken 1 | 1 . . . Scrap Searched 4 | . . . 4 Spaces Dug 13 | . . . 13 Terrain Destroyed 60 | . 19 6 35 Melee 13 | . . . 13 Projectile . | . . . . AOE 47 | . 19 6 22 Terrain Rammed . | . . . . Walls Destroyed . | . . . . Machines Disabled . | . . . . Actions | -11 -10 -10 -10 --------- Run | Yrd Mat Min Sub Total 1731 | 47 175 226 1283 Wait 35 | . 11 5 19 Move 1511 | 36 133 213 1129 Hop . | . . . . Pick Up 20 | 5 2 5 8 Fast Attach 8 | 6 1 . 1 Attach 10 | . 2 . 8 Detach 2 | . . . 2 Swap 6 | . . . 6 Drop 6 | . . 2 4 Fire 68 | . 26 1 41 Melee 58 | . . . 58 Ram . | . . . . Kick . | . . . . Crush . | . . . . Escape Stasis . | . . . . Rewire . | . . . . Trap 3 | . . . 3 Miscellaneous 4 | . . . 4 Route ------- -11/Scrapyard -10/Materials (discovered 2 exits: *Min x2) -10/Mines (discovered 2 exits: *Mat / *Sub) -10/Subcaves History --------- Turn | Location | Event 20 | -11/Scrapyard | Discovered new exit (range 15) 64 | -11/Scrapyard | Entered Materials 64 | -10/Materials | Discovered new exit (range 7) 323 | -10/Materials | Build established: Mutant 338 | -10/Materials | Discovered new exit (range 14) 363 | -10/Materials | Identified exit to Mines 367 | -10/Materials | Entered Mines 375 | -10/Mines | Identified exit to Subcaves 401 | -10/Mines | A weapon hastily lodged in a ceiling crevice suddenly fell to the ground 431 | -10/Mines | Discovered new exit (range 10) 444 | -10/Mines | Identified exit to Materials 518 | -10/Mines | Found a hidden stash of uninstalled traps 722 | -10/Mines | Entered Subcaves 729 | -10/Subcaves | Learned location of Zion (-6) 862 | -10/Subcaves | Shifting Twisted Machinery released Battle Cannon 994 | -10/Subcaves | Disturbed a concealed Subdweller 1002 | -10/Subcaves | Core integrity fell below 50% 1398 | -10/Subcaves | Met a Zionite searching for "candidates" 1485 | -10/Subcaves | Learned Materials garrison access intel 2238 | -10/Subcaves | Shifting Twisted Machinery released Battle Cannon 2247 | -10/Subcaves | Shifting Twisted Machinery released Scrap Shield 2297 | -10/Subcaves | Shifting Twisted Machinery released Flamer 2397 | -10/Subcaves | A swath of the cavern ceiling suddenly collapsed 2412 | -10/Subcaves | Shifting Twisted Machinery released Sub. Beam Cannon 2423 | -10/Subcaves | Shifting Twisted Machinery released Sub. Monowheel 2543 | -10/Subcaves | Core integrity fell below 20% 2889 | -10/Subcaves | Destroyed by JB-UYI(R) with Subdweller Machine Gun Last Messages --------------- Sink. 02800_ Scrap Shield Fragment affixed to Scrap Shield (+46). [Achievement: Survival Of The Most Covered] 02803_ Scrap Shield Fragment affixed to Scrap Shield (+50). 02805_ Subatomizers dissect the Disposable Heat Sink. 02813_ Sub. Power Source melted. 02813_ NT-XY3(R) destroyed. 02818_ Scrap Shield Fragment affixed to Scrap Shield (+50). 02819_ Subatomizers dissect the Disposable Heat Sink. 02822_ Scrap Shield Fragment affixed to Scrap Shield (+39). 02823_ Acquired 54 matter. 02829_ Subatomizers dissect the Disposable Heat Sink. 02889_ Critical hit (Meltdown: +250). Map ----- +----------------------------------------------------+ | ?????????????????## #??????#"##### #????????? | | ??????????????????## ##?????""" "" ##????????? | | ???????????????????# #????"""" "" #?????????? | | ??????????????????## ## ##"####" ###???????? | | ???????????????#### ##?# #?????###" ##??????? | | ???????????????# #### "##????# "" #??????? | | ???????????????## ! #???#"""""### ##?????? | | ????????????????# """"##???###""# [[#?????? | | ????????????????# """"?????#### &""#?????? | | ????????????????# """?????# & #?????? | | ????????????????# ## ## #????#" " #?????? | | ???????????????## ##?####?? #????# "" ##?????? | | ????????????#### #????????? ?##????###"##??????? | | ????????????# ##????????????????????????????? | | ????????????# #####????????????????????????? | | ????????????# ## ##???????????????????????? | | ????????????## #???????????????????????? | | ?????????????#### ##?##????????????????????? | | ????????????????### ##?? ####?????? ??????????? | | ??????????????????# #### ##??? ??????????? | | ??????????????????# ## ## #?????????? | | ??????????????????# ?????????? | | ??????????????????# ????????? | | ??????????????????# ????????? | | ??????????????????# ###????????????? | | ??????????? #### @ ## ##??????????????? | | ???????????? ???### #?? ###???????????????? | | ???????????# ????# RR#???#?????????????????? | | ???????????? ??? #?????????????????????? | | ???????????# ?? ?????????????????????? | | ???????????# ## ? # ## ????????????????????? | | ???????????#??#############?# ???????????????????? | | ????????????????????????????? ???????????????????? | | ?????????????????????????????? ??????????????????? | | ??????????????????????????????? ?????????????????? | | ??????????????????????????????? ????????????????? | | ???????????????????????????????? ????????????????? | | ????????????????????????????????? ???????????????? | | ??????????????????????????????????"??????????????? | | ?????????????????????????????????????????????????? | | ?????????????????????????????????????????????????? | | ?????????????????????????????????????????????????? | | ?????????????????????????????????????????????????? | | ?????????????????????????????????????????????????? | | ?????????????????????????????????????????????????? | | ?????????????????????????????????????????????????? | | ?????????????????????????????????????????????????? | | ?????????????????????????????????????????????????? | | ?????????????????????????????????????????????????? | | ?????????????????????????????????????????????????? | +----------------------------------------------------+ Best States ------------- Heat Dissipation 25 Energy Generation 10 Energy Capacity 250 Matter Stores 300 Matter Capacity 300 Sight Range 16 Terrain Scan Density 10 Armor Coverage 800 Evasion (%) 55 Recoil Reduction 2 Item Schematics ----------------- None Robot Schematics ------------------ None Fabricated ------------ Nothing Repaired ---------- Nothing Studied --------- None Alien Tech Used ----------------- None Achievements -------------- DATA ERROR: Steam Global Achievement% Survival Of The Most Covered There's More Where That Came From Challenges ------------ None Game ------ Seed MissileIntegrityRefractor Manual? 0 Play Time 00:24:54 Cumulative 79.0 hours Start 2025.10.24 @ 15:42:25 End 2025.10.24 @ 16:13:42 Sessions 1 Manual Loads 0 Difficulty Rogue Special Mode None Game No. 91 Rogue 91 Adventurer 0 Explorer 0 Win Type - Total 2 Types 2/0/0/0/0/0/0/0/0/0 Lore% 49 Gallery% 43 Achievement% 22 Wizard Run 0 Options --------- Layout 1 ASCII 0 Keyboard 1 Movement Vi Keybinds 0 Fullscreen 2 Font 24/Smallcaps Map View 50x35 Zoom Use 0% Tactical HUD 1 Map Filters NONE Filters NONE Steam 1 RUN: f71489d9-6f10-4f0c-8f41-ea2d2bb78753